bitfinex-derivatives/quotes_ETHF0:USTF0_20250904
["timestamp","ask_amount","ask_price","bid_price","bid_amount"]
[1756960357618,0.1944,4404.2,4404.1,0.717]
[1756960357820,1.05308416,4404.2,4404.1,0.717]
[1756960358011,1.25278416,4404.2,4404.1,0.5105]
[1756960358611,1.25278416,4404.2,4403.6,0.3157]
[1756960358815,0.6903,4403.7,4403.6,0.5105]
[1756960359620,0.1944,4403.7,4403.6,0.717]
[1756960359922,0.2962,4404.0,4403.6,0.4013]
[1756960360123,1.25373358,4403.9,4403.8,0.717]
[1756960360423,1.97687843,4404.6,4403.8,0.717]
[1756960360424,0.2962,4404.6,4403.8,0.717]
[1756960360615,0.1944,4403.9,4403.8,2.37817843]
[1756960360816,0.56344219,4404.4,4403.8,2.37817843]
[1756960361023,0.75784219,4404.3,4404.2,0.717]
[1756960361416,1.05404219,4404.3,4404.2,0.717]
[1756960362115,0.75784219,4404.3,4404.2,0.717]
[1756960362316,1.24774219,4404.3,4404.2,0.717]
[1756960369425,0.56344219,4404.3,4404.2,0.717]
[1756960369824,0.77004219,4404.3,4404.2,0.717]
[1756960370232,1.05574219,4404.3,4404.2,0.717]
[1756960370932,0.77004219,4404.3,4404.2,0.717]
[1756960371936,1.05574219,4404.3,4404.2,0.717]
[1756960372432,0.77004219,4404.3,4404.2,0.717]
[1756960372635,0.56344219,4404.3,4404.2,0.94405]
[1756960372829,0.56344219,4404.3,4404.2,0.717]
[1756960379643,0.2857,4404.8,4404.2,4.4013]
[1756960379844,0.6965,4404.8,4404.7,2.24631317]
[1756960380045,0.6965,4404.8,4404.7,2.12721317]
[1756960380546,0.6965,4404.8,4404.7,0.7032]
[1756960380740,0.6965,4404.8,4404.5,0.3459]
[1756960380741,0.6965,4404.8,4404.5,0.229]
[1756960380940,0.1221,4405.0,4404.5,0.5376]
[1756960381141,0.6965,4404.6,4404.5,0.7427]
[1756960382341,0.6965,4404.6,4404.5,0.5137]
[1756960382542,0.6965,4404.6,4404.5,0.7427]
[1756960384042,0.6965,4404.6,4404.5,0.9322]
[1756960385442,0.6965,4404.6,4404.5,1.0491]
[1756960386741,0.6965,4404.6,4404.5,2.78171317]
[1756960387348,0.2066,4404.6,4404.5,2.78171317]
[1756960387541,0.4923,4404.9,4404.8,0.3946]
[1756960387845,0.2066,4405.0,4404.9,0.7032]
[1756960388048,0.4923,4405.0,4404.9,2.43581317]
[1756960388747,0.2066,4405.0,4404.9,2.43581317]
[1756960388945,0.2857,4405.3,4405.2,0.3946]
[1756960388946,0.4923,4405.3,4405.2,0.3946]
[1756960389143,0.6965,4405.3,4405.2,2.43581317]
[1756960391856,1.25607431,4405.3,4405.2,2.43581317]
[1756960393358,1.25607431,4405.3,4405.1,0.229]
[1756960393545,0.95657431,4405.2,4405.1,0.229]
[1756960393745,1.24367431,4405.2,4405.1,0.229]
[1756960395153,1.24367431,4405.2,4404.9,0.229]
[1756960395358,0.397,4405.2,4404.9,0.5195]
[1756960395555,1.73261317,4405.4,4404.9,0.5195]
[1756960395756,0.6841,4405.0,4404.9,0.7093]
[1756960396054,0.6841,4405.0,4404.9,0.9146]
[1756960396251,0.2076,4405.0,4404.9,0.9146]
[1756960396451,0.6841,4405.0,4404.9,0.9146]
[1756960399950,0.2076,4405.0,4404.9,0.9146]
[1756960400155,0.6841,4405.0,4404.9,0.9146]
[1756960402554,0.1177,4406.0,4404.9,0.9146]
[1756960402555,0.6841,4405.9,4405.8,0.1898]
[1756960402848,1.24427503,4405.9,4405.8,2.41821317]
[1756960403246,1.24427503,4405.9,4405.7,0.229]
[1756960403547,1.24427503,4405.8,4405.7,0.4188]
[1756960403756,1.24427503,4405.8,4405.7,0.9146]
[1756960404542,1.24427503,4405.8,4405.7,0.6856]
[1756960406653,0.76777503,4405.8,4405.7,0.6856]
[1756960407952,0.4947,4406.1,4406.0,0.8049]
[1756960408156,0.4947,4406.1,4406.0,2.53751317]
[1756960408546,0.76742325,4406.1,4406.0,2.53751317]
[1756960409156,1.05452325,4406.1,4406.0,2.53751317]
[1756960409559,0.55982325,4406.1,4406.0,2.53751317]
[1756960409856,1.05452325,4406.1,4406.0,2.53751317]
[1756960411256,0.76742325,4406.1,4406.0,2.53751317]
[1756960411659,0.55982325,4406.1,4406.0,2.53751317]
[1756960412660,0.76742325,4406.1,4406.0,2.53751317]
[1756960412861,1.05452325,4406.1,4406.0,2.53751317]
[1756960414059,1.24392325,4406.1,4406.0,2.53751317]
[1756960414859,1.24392325,4406.1,4406.0,2.41821317]
[1756960415959,0.397,4405.8,4405.7,0.2905]
[1756960416262,0.6841,4405.8,4405.7,0.9146]
[1756960417162,0.2076,4405.8,4405.7,0.9146]
[1756960417562,0.6841,4405.8,4405.7,2.64721317]
[1756960418158,0.6841,4405.8,4405.7,0.4803]
[1756960418360,1.2437786,4405.8,4405.7,0.229]
[1756960419261,1.2437786,4405.8,4405.7,0.4803]
[1756960419459,1.2437786,4405.8,4405.7,0.6856]
[1756960420263,1.2437786,4405.8,4405.7,2.41821317]
[1756960422059,0.5596786,4405.8,4405.7,2.41821317]
[1756960422665,1.2584786,4405.8,4405.7,2.41821317]
[1756960422966,0.6988,4405.7,4405.6,0.229]
[1756960423159,0.539,4405.5,4405.4,0.3132]
[1756960423355,1.3833786,4405.5,4405.4,0.5422]
[1756960423958,1.3833786,4405.5,4405.0,1.85191317]
[1756960424154,1.0500786,4405.4,4405.3,2.44761317]
[1756960424566,1.2584786,4405.4,4405.3,2.44761317]
[1756960425863,0.5596786,4405.4,4405.3,2.44761317]
[1756960426366,0.5596786,4405.4,4405.3,2.67661317]
[1756960426960,0.6988,4406.1,4406.0,0.1918]
[1756960427167,1.25804253,4406.1,4406.0,0.505]
[1756960427866,0.76494253,4406.1,4406.0,2.56441317]
[1756960429366,0.76494253,4406.1,4406.0,0.8318]
[1756960429566,1.25804253,4406.1,4406.0,0.8318]
[1756960429767,1.25804253,4406.1,4406.0,0.715]
[1756960431674,1.25804253,4406.1,4406.0,0.8318]
[1756960431875,0.55924253,4406.1,4406.0,0.8318]
[1756960432272,0.55924253,4406.1,4406.0,2.80540336]
[1756960434667,0.55924253,4406.1,4406.0,6.80540336]
[1756960434865,0.2057,4406.2,4406.1,0.715]
[1756960435071,0.2057,4406.2,4406.1,0.944]
[1756960435677,0.2847,4406.4,4406.1,0.944]
[1756960435878,0.4904,4406.4,4406.3,0.4018]
[1756960436082,0.4904,4406.4,4406.3,0.944]
[1756960436667,0.2057,4406.4,4406.3,0.944]
[1756960436878,0.2057,4406.6,4406.5,0.1168]
[1756960437078,0.2057,4406.6,4406.5,0.7476]
[1756960437273,0.2847,4407.2,4407.0,0.1168]
[1756960437475,0.2057,4407.2,4407.1,0.715]
[1756960437684,0.539,4408.0,4407.9,0.1918]
[1756960437979,0.4141,4408.0,4407.9,0.715]
[1756960438281,0.6988,4408.0,4407.9,0.715]
[1756960440187,0.8237,4408.0,4407.6,0.3132]
[1756960440389,0.8237,4408.0,4407.5,0.23]
[1756960440888,0.2847,4407.9,4407.6,0.3132]
[1756960441085,0.4141,4407.7,4407.6,0.505]
[1756960441385,0.6988,4407.7,4407.6,0.715]
[1756960442182,0.1249,4408.5,4407.7,0.3132]
[1756960442376,0.2057,4407.9,4407.8,0.715]
[1756960442580,0.2057,4407.9,4407.8,2.68860336]
[1756960442779,0.4904,4407.9,4407.8,2.68860336]
[1756960442979,0.6988,4407.9,4407.8,2.68860336]
[1756960443192,0.6988,4407.9,4407.8,0.505]
[1756960444184,0.6988,4407.9,4407.8,0.715]
[1756960445290,0.6988,4407.9,4407.3,0.3132]
[1756960445490,0.4141,4407.9,4407.3,0.5422]
[1756960445786,0.6988,4407.4,4407.3,0.505]
[1756960445992,0.6988,4407.4,4407.0,0.3132]
[1756960446194,0.2847,4407.3,4407.0,0.5422]
[1756960446393,0.6988,4407.1,4407.0,2.72120336]
[1756960446787,0.6988,4407.1,4407.0,0.944]
[1756960447293,0.6988,4406.7,4406.6,0.734]
[1756960447490,0.6988,4406.7,4406.6,0.505]
[1756960447697,0.6988,4406.7,4406.3,0.3132]
[1756960447996,0.4141,4406.4,4406.3,0.1918]
[1756960448191,0.6988,4406.4,4406.3,0.715]
[1756960448494,0.4141,4406.4,4406.3,0.715]
[1756960449691,0.167,4407.4,4406.5,0.1168]
[1756960449892,0.83961971,4407.3,4406.6,0.3132]
[1756960450192,0.6988,4406.7,4406.6,0.715]
[1756960450397,1.25371971,4406.7,4406.6,0.715]
[1756960451599,1.25371971,4406.7,4406.6,0.8445]
[1756960456893,1.25371971,4406.7,4406.6,0.6345]
[1756960457495,1.25371971,4406.7,4406.6,0.1295]
[1756960458196,1.25371971,4406.7,4406.6,0.8261]
[1756960460198,0.3092,4407.2,4406.7,0.2972]
[1756960460400,0.6965,4407.2,4407.1,0.6966]
[1756960460596,1.25184576,4407.2,4407.1,0.6966]
[1756960463906,1.25184576,4407.2,4407.1,0.1909]
[1756960464607,1.25184576,4407.2,4407.1,0.4881]
[1756960468304,0.94264576,4407.2,4406.7,0.2972]
[1756960468505,0.1895,4406.7,4406.6,2.73150336]
[1756960468808,0.3092,4407.4,4406.6,2.73150336]
[1756960469010,0.4987,4407.4,4407.3,0.6966]
[1756960469209,1.0543169,4407.4,4407.3,0.6966]
[1756960469398,1.2521169,4407.4,4407.3,0.6966]
[1756960474611,0.5556169,4407.4,4407.3,0.6966]
[1756960474915,1.91806631,4407.7,4407.6,0.3994]
[1756960475111,2.47425585,4407.7,4407.6,0.6966]
[1756960475311,1.25268954,4407.7,4407.6,0.6966]
[1756960479716,1.25268954,4407.7,4407.0,0.1242]
[1756960480021,1.25268954,4407.6,4407.5,0.6966]
[1756960480318,1.25268954,4407.6,4407.0,0.1242]
[1756960480617,0.6965,4407.2,4407.1,0.6966]
[1756960480816,1.25268954,4407.2,4407.1,0.6966]
[1756960483519,0.6965,4407.2,4407.1,0.6966]
[1756960484115,0.1895,4407.2,4407.1,0.6966]
[1756960484320,0.3078,4407.5,4407.2,0.3064]
[1756960484524,0.55439111,4407.4,4407.3,2.67160336]
[1756960485517,0.75559111,4407.4,4407.3,2.67160336]
[1756960486223,0.75559111,4407.4,4407.3,0.698]
[1756960486224,1.26659111,4407.4,4407.3,0.698]
[1756960486426,1.26659111,4407.4,4407.3,0.7324]
[1756960486925,0.75559111,4407.4,4407.3,0.927]
[1756960488425,1.06339111,4407.4,4407.3,0.927]
[1756960489023,1.06339111,4407.4,4407.3,0.698]
[1756960489229,1.06339111,4407.4,4407.3,0.927]
[1756960493032,1.26659111,4407.4,4407.3,0.927]
[1756960493533,1.26659111,4407.4,4407.3,2.65707182]
[1756960498334,0.75559111,4407.4,4407.3,2.65707182]
[1756960500137,1.06339111,4407.4,4407.3,0.927]
[1756960500334,1.26659111,4407.4,4407.3,2.65707182]
[1756960503237,0.75559111,4407.4,4407.3,2.65707182]
[1756960503625,1.26659111,4407.4,4407.3,2.65707182]
[1756960507431,1.26659111,4407.4,4407.3,0.5034]
[1756960507636,2.99666293,4407.4,4407.3,0.229]
[1756960507838,0.3078,4406.7,4406.4,0.3064]
[1756960508137,1.26659111,4406.7,4406.5,0.229]
[1756960508339,1.26659111,4406.7,4406.6,0.6329]
[1756960513538,1.26659111,4406.7,4406.6,0.1295]
[1756960514132,5.72252111,4406.7,4404.5,32.8031]
[1756960514338,0.6939,4405.2,4405.1,0.5122]
[1756960514529,0.6939,4405.2,4405.1,2.43157182]
[1756960514735,0.6939,4405.2,4405.1,2.66057182]
[1756960515535,0.6939,4405.2,4405.1,0.1984]
[1756960515746,0.6939,4405.2,4405.0,0.229]
[1756960516036,0.6939,4405.2,4405.1,2.43157182]
[1756960517337,0.6939,4405.2,4405.1,0.7015]
[1756960518540,0.6939,4405.2,4405.1,0.9305]
[1756960518936,0.6939,4405.2,4404.8,0.1295]
[1756960519138,0.6939,4404.9,4404.8,0.1295]
[1756960519338,1.24732502,4404.9,4404.8,0.1295]
[1756960519937,5.24732502,4404.9,4404.8,0.1295]
[1756960520342,5.47434502,4404.9,4404.8,0.1295]
[1756960520842,5.24732502,4404.9,4404.8,0.1295]
[1756960522241,4.6939,4404.9,4404.8,0.1295]
[1756960525446,0.6939,4404.9,4404.8,2.56107182]
[1756960525647,0.1985,4404.9,4404.8,2.56107182]
[1756960525849,0.4934,4404.9,4404.8,2.56107182]
[1756960526050,0.6939,4404.9,4404.8,2.56107182]
[1756960531251,0.2949,4405.2,4404.8,2.56107182]
[1756960531447,0.6939,4405.2,4405.1,0.7015]
[1756960531651,0.229,4405.8,4405.1,2.11777182]
[1756960531854,0.6939,4405.7,4405.6,0.7015]
[1756960534145,0.2949,4405.6,4405.1,1.73007182]
[1756960534341,0.6939,4405.3,4404.9,0.229]
[1756960534651,0.6939,4405.3,4405.2,0.5122]
[1756960536147,0.6939,4405.3,4405.2,0.7015]
[1756960537854,0.5239,4406.5,4406.4,0.1984]
[1756960538044,0.55373723,4406.6,4406.4,0.3877]
[1756960538249,0.1985,4406.9,4406.8,0.7015]
[1756960538449,0.4934,4406.9,4406.8,0.7015]
[1756960538649,1.24765751,4406.9,4406.8,0.7015]
[1756960543545,0.229,4407.3,4407.2,0.4056]
[1756960543751,0.78235747,4407.3,4407.2,2.41997182]
[1756960543945,0.4255,4407.8,4407.7,0.4056]
[1756960544153,1.27384408,4407.8,4407.7,0.6899]
[1756960544654,1.48064408,4407.8,4407.7,0.6899]
[1756960546357,1.25164408,4407.8,4407.7,0.6899]
[1756960546559,0.295,4407.7,4407.1,2.01437182]
[1756960546757,0.1965,4407.2,4407.1,2.41997182]
[1756960547060,0.6983,4407.7,4407.6,0.6899]
[1756960549652,0.6983,4407.7,4407.1,1.73007182]
[1756960549857,0.4033,4407.3,4407.2,0.6899]
[1756960550058,0.6983,4407.3,4407.2,0.6899]
[1756960551766,0.295,4407.6,4407.2,0.6899]
[1756960551966,0.4915,4407.6,4407.5,0.811]
[1756960552168,0.1965,4407.6,4407.5,0.811]
[1756960553164,0.6983,4407.3,4407.2,0.4868]
[1756960553668,0.6983,4407.3,4407.2,0.6899]
[1756960558978,0.4123,4406.5,4406.1,0.2843]
[1756960559181,0.295,4406.6,4406.0,0.8129]
[1756960559382,0.295,4406.9,4406.5,2.49938339]
[1756960559582,0.55256543,4406.8,4406.7,0.4056]
[1756960559781,0.55256543,4406.8,4406.7,0.6899]
[1756960560186,0.295,4407.7,4406.7,0.4056]
[1756960560380,1.25085205,4407.6,4407.5,0.2025]
[1756960560582,1.25085205,4407.6,4407.5,0.4868]
[1756960563490,1.25085205,4407.6,4407.5,0.6899]
[1756960563682,0.74905205,4407.6,4407.5,0.811]
[1756960564085,0.55255205,4407.6,4407.5,0.811]
[1756960564289,0.55255205,4408.1,4407.5,0.811]
[1756960564490,0.55255205,4408.0,4407.5,0.5267]
[1756960564690,0.55255205,4407.9,4407.8,0.4056]
[1756960564885,0.6983,4408.0,4407.9,0.4056]
[1756960565187,1.25175823,4408.0,4407.9,0.6899]
[1756960565584,1.36905823,4408.0,4407.6,0.2843]
[1756960565787,0.4033,4407.7,4407.6,0.2843]
[1756960565992,1.20615118,4407.7,4407.6,0.4868]
[1756960566188,1.20615118,4407.7,4407.6,0.6899]
[1756960567495,1.20615118,4407.7,4407.6,0.2843]
[1756960568188,1.20615118,4407.7,4407.6,0.4868]
[1756960570790,3.17883457,4407.7,4407.1,0.2843]
[1756960571092,0.6983,4407.2,4407.1,0.6899]
[1756960571287,1.25175823,4407.2,4407.1,0.6899]
[1756960572704,0.95675823,4407.2,4407.1,0.6899]
[1756960572903,0.55345823,4407.2,4407.1,0.6899]
[1756960573197,0.4899,4407.7,4407.6,0.7007]
[1756960573506,0.2024,4407.7,4407.6,0.7007]
[1756960573701,0.75756954,4407.7,4407.6,0.7007]
[1756960573999,1.25546954,4407.7,4407.6,0.7007]
[1756960574401,0.55516954,4407.7,4407.6,0.7007]
[1756960574699,0.55516954,4407.9,4407.6,0.3945]
[1756960574894,0.55516954,4407.9,4407.7,0.3062]
[1756960575095,0.75756954,4407.9,4407.8,0.7007]
[1756960575296,0.55516954,4407.9,4407.8,0.7007]
[1756960575495,0.55516954,4408.1,4407.8,4.92757]
[1756960575802,0.2024,4408.6,4408.5,0.5112]
[1756960576498,0.75757441,4408.6,4408.5,0.8174]
[1756960578291,1.04507441,4408.6,4408.5,0.8174]
[1756960578495,1.25547441,4408.6,4408.5,0.8174]
[1756960582804,1.25547441,4408.6,4408.5,0.5063]
[1756960583003,0.7003,4408.2,4408.1,0.7007]
[1756960583199,0.2024,4408.2,4408.1,0.7007]
[1756960583407,0.2875,4408.6,4408.5,0.5112]
[1756960583408,0.4899,4408.6,4408.5,0.5112]
[1756960583605,1.04372331,4408.6,4408.5,0.8174]
[1756960583806,1.25412331,4408.6,4408.5,0.8174]
[1756960584302,0.96662331,4408.6,4408.5,0.8174]
[1756960584499,1.25412331,4408.6,4408.5,0.8174]
[1756960584800,0.96662331,4408.6,4408.5,0.8174]
[1756960585301,1.25412331,4408.6,4408.5,0.8174]
[1756960585503,0.7003,4408.6,4408.5,0.8174]
[1756960585806,1.25397964,4408.6,4408.5,0.7007]
[1756960586402,1.25397964,4408.6,4408.5,0.8174]
[1756960587610,1.25397964,4408.6,4408.5,0.7007]
[1756960588707,1.25397964,4408.6,4408.2,0.3062]
[1756960588900,1.97268339,4408.8,4408.0,0.3945]
[1756960588901,0.7003,4408.1,4408.0,0.3945]
[1756960589304,0.7003,4408.1,4408.0,0.8174]
[1756960590111,0.2024,4408.2,4408.1,0.7007]
[1756960591011,0.4899,4408.2,4408.1,0.7007]
[1756960594710,0.7003,4408.2,4408.1,0.7007]
[1756960595611,0.2024,4408.2,4408.1,0.7007]
[1756960597015,0.4899,4408.2,4408.1,0.7007]
[1756960597307,0.2024,4408.2,4408.1,0.7007]
[1756960597512,0.2875,4408.8,4408.2,0.3062]
[1756960597806,0.96701681,4408.7,4408.6,0.7007]
[1756960598001,0.55421681,4408.7,4408.6,0.7007]
[1756960598204,0.17,4408.9,4408.7,0.3062]
[1756960598408,0.75655287,4408.8,4408.7,0.7007]
[1756960600315,1.25445287,4408.8,4408.7,0.7007]
[1756960605411,0.96695287,4408.8,4408.7,0.7007]
[1756960606414,1.26345287,4408.8,4408.7,0.7007]
[1756960609522,0.55415287,4408.8,4408.7,2.67338339]
[1756960609718,0.55415287,4408.8,4408.7,2.90238339]
[1756960612224,1.25125287,4408.8,4408.7,0.7007]
[1756960612424,1.25125287,4408.8,4408.7,0.9297]
[1756960612619,1.25125287,4408.8,4408.7,2.90238339]
[1756960612927,1.04425287,4408.8,4408.7,2.90238339]
[1756960613417,1.04425287,4408.8,4408.7,2.65861732]
[1756960613825,1.25125287,4408.8,4408.7,2.65861732]
[1756960614125,1.25125287,4408.8,4408.7,0.9297]
[1756960615820,0.55415287,4408.8,4408.7,0.9297]
[1756960616924,0.74775287,4408.8,4408.7,0.9297]
[1756960617123,0.74775287,4408.8,4408.7,2.65861732]
[1756960617325,0.74775287,4408.8,4408.7,2.42961732]
[1756960617517,1.04425287,4408.8,4408.7,2.65861732]
[1756960617714,0.74775287,4408.8,4408.7,2.65861732]
[1756960618121,0.55415287,4408.8,4408.7,2.65861732]
[1756960618722,0.17,4408.9,4408.7,2.65861732]
[1756960618922,0.17,4408.9,4408.8,0.7058]
[1756960619426,0.17,4408.9,4408.8,2.66371732]
[1756960620120,0.17,4408.9,4408.8,0.9348]
[1756960620315,0.6601,4408.9,4408.8,2.66371732]
[1756960620822,0.17,4408.9,4408.8,2.66371732]
[1756960621219,0.3636,4408.9,4408.8,0.7058]
[1756960621421,0.6601,4408.9,4408.8,2.66371732]
[1756960621725,0.3636,4408.9,4408.8,2.66371732]
[1756960622028,0.8671,4408.9,4408.8,2.43471732]
[1756960622226,0.8671,4408.9,4408.8,2.66371732]
[1756960623630,0.5706,4408.9,4408.8,2.66371732]
[1756960624426,0.5706,4408.9,4408.8,0.9348]
[1756960624628,0.5706,4408.9,4408.8,2.66371732]
[1756960626027,0.3636,4408.9,4408.8,2.66371732]
[1756960626228,0.3636,4408.9,4408.8,2.43471732]
[1756960626431,0.8671,4408.9,4408.8,2.66371732]
[1756960626731,1.42252575,4408.9,4408.8,2.66371732]
[1756960627227,0.8671,4408.9,4408.8,2.66371732]
[1756960627425,1.42260907,4408.9,4408.8,2.66371732]
[1756960629132,1.42260907,4408.9,4408.8,2.43471732]
[1756960629732,1.42260907,4408.9,4408.8,2.66371732]
[1756960631634,1.12610907,4408.9,4408.8,2.66371732]
[1756960633731,1.44070907,4408.9,4408.8,2.66371732]
[1756960634536,1.44070907,4408.9,4408.8,2.43471732]
[1756960634733,1.44070907,4408.9,4408.8,0.9348]
[1756960635036,1.44070907,4408.9,4408.7,0.229]
[1756960635241,0.7213,4408.4,4408.3,2.42171732]
[1756960635538,1.27680907,4408.4,4408.3,2.65071732]
[1756960636340,1.27680907,4408.4,4408.3,2.42171732]
[1756960636544,1.27680907,4408.4,4408.3,2.65071732]
[1756960637139,1.27680907,4408.4,4408.3,0.6928]
[1756960637333,1.27680907,4408.4,4408.3,0.9218]
[1756960637529,1.27680907,4408.4,4408.3,0.6928]
[1756960637736,0.3146,4408.3,4408.0,0.3007]
[1756960637937,0.7213,4408.1,4408.0,0.6928]
[1756960638133,0.7213,4408.1,4408.0,1.0402]
[1756960638338,1.27705435,4408.1,4408.0,1.0402]
[1756960639134,0.7213,4408.1,4408.0,1.0402]
[1756960639537,0.4067,4408.1,4408.0,1.0402]
[1756960640242,0.2062,4408.1,4408.0,1.0402]
[1756960642748,0.2062,4408.1,4408.0,2.76911732]
[1756960643244,0.2062,4408.8,4408.7,0.6928]
[1756960643551,0.55529482,4408.8,4408.7,2.42171732]
[1756960645547,0.76149482,4408.8,4408.7,0.6928]
[1756960645747,0.76149482,4408.8,4408.7,2.42171732]
[1756960646053,1.27659482,4408.8,4408.7,2.42171732]
[1756960647454,1.27659482,4408.8,4408.7,0.4905]
[1756960647652,1.27659482,4408.8,4408.7,0.1898]
[1756960647954,0.55529482,4408.8,4408.7,0.6928]
[1756960648761,0.76149482,4408.8,4408.7,0.6928]
[1756960651959,0.55529482,4408.8,4408.7,0.6928]
[1756960652662,0.76149482,4408.8,4408.7,0.6928]
[1756960652854,0.76149482,4408.8,4408.7,2.42171732]
[1756960657560,0.55529482,4408.8,4408.7,2.42171732]
[1756960659161,1.07609482,4408.8,4408.7,2.42171732]
[1756960659550,1.27659482,4408.8,4408.7,2.42171732]
[1756960660770,1.27659482,4408.8,4408.7,0.229]
[1756960661061,0.7213,4408.2,4408.1,0.7195]
[1756960661258,1.27659482,4408.2,4408.1,0.7195]
[1756960662864,1.27659482,4408.2,4408.1,0.9165]
[1756960663356,1.25889482,4408.2,4408.1,0.9165]
[1756960665966,0.96199482,4408.2,4408.1,0.9165]
[1756960666866,1.25889482,4408.2,4408.1,0.9165]
[1756960667064,1.25889482,4408.2,4408.1,0.4905]
[1756960667363,1.25889482,4408.2,4408.1,0.229]
[1756960667668,0.96199482,4408.2,4408.1,2.64991732]
[1756960668368,1.25889482,4408.2,4408.1,2.64991732]
[1756960673872,1.25889482,4408.2,4408.1,2.42091732]
[1756960674169,0.96199482,4408.2,4408.1,2.64991732]
[1756960675563,0.96199482,4408.2,4408.1,0.921]
[1756960676767,1.25889482,4408.2,4408.1,0.921]
[1756960677668,0.76149482,4408.2,4408.1,0.921]
[1756960677869,1.05599482,4408.2,4408.1,0.921]
[1756960678775,0.5007,4408.2,4408.1,0.921]
[1756960679372,1.05631682,4408.2,4408.1,0.921]
[1756960679574,0.2038,4408.2,4408.1,0.921]
[1756960680167,0.75941571,4408.2,4408.1,0.921]
[1756960682276,0.7594577,4408.2,4408.1,0.921]
[1756960683879,1.0563577,4408.2,4408.1,0.921]
[1756960685782,0.5556577,4408.2,4408.1,2.89255638]
[1756960686174,0.3738,4408.9,4408.8,0.405]
[1756960686373,0.92965987,4408.9,4408.8,0.692]
[1756960686881,1.22655987,4408.9,4408.8,0.692]
[1756960687470,1.41995987,4408.9,4408.8,0.692]
[1756960692082,1.41995987,4408.9,4408.1,0.2981]
[1756960692083,3.61833626,4408.9,4408.1,0.2981]
[1756960692287,0.6933,4408.1,4408.0,0.1986]
[1756960692488,0.6933,4408.1,4408.0,0.4276]
[1756960692690,0.6933,4408.1,4408.0,0.1986]
[1756960692884,0.6933,4408.1,4408.0,0.7257]
[1756960693780,0.6933,4408.1,4408.0,0.9164]
[1756960694884,0.1944,4408.1,4408.0,1.0397]
[1756960695091,0.6933,4408.8,4408.7,0.4967]
[1756960695282,1.2488352,4408.8,4408.7,0.4967]
[1756960695588,1.2488352,4408.8,4408.7,0.6874]
[1756960698180,0.9471352,4408.8,4408.7,0.6874]
[1756960698380,0.7499352,4408.8,4408.7,0.6874]
[1756960698791,1.2488352,4408.8,4408.7,0.6874]
[1756960703993,0.9471352,4408.8,4408.7,0.6874]
[1756960704590,1.2488352,4408.8,4408.7,0.6874]
[1756960707792,0.9471352,4408.8,4408.7,0.6874]
[1756960709692,1.2488352,4408.8,4408.7,0.6874]
[1756960711103,1.2488352,4408.8,4408.7,0.4967]
[1756960712093,1.2488352,4408.8,4408.7,0.6874]
[1756960712300,0.9471352,4408.8,4408.7,0.6874]
[1756960712503,1.2488352,4408.8,4408.7,0.6874]
[1756960721808,1.2488352,4408.8,4408.7,0.4967]
[1756960722009,1.2488352,4408.8,4091.0,0.00473997]
[1756960722010,0.2938,4408.3,4408.1,0.2914]
[1756960722303,0.6938,4407.7,4407.6,0.90955]
[1756960722504,0.6938,4407.7,4407.6,1.13855]
[1756960723402,0.4,4407.7,4407.6,1.13855]
[1756960723603,0.2049,4407.7,4407.6,1.13855]
[1756960723898,0.2938,4408.0,4407.7,0.2914]
[1756960724102,0.2049,4408.0,4407.9,2.65425638]
[1756960724303,0.76117669,4408.0,4407.9,2.65425638]
[1756960724505,0.55627669,4408.0,4407.9,2.65425638]
[1756960724709,0.55627669,4408.0,4407.9,2.88325638]
[1756960725005,0.17,4408.9,4408.1,0.2914]
[1756960725006,0.2938,4408.8,4408.1,0.2914]
[1756960725203,0.2049,4408.2,4408.1,0.6827]
[1756960725398,0.76112557,4408.2,4408.1,0.9117]
[1756960725602,1.05492557,4408.2,4408.1,0.9117]
[1756960727205,1.25002557,4408.2,4408.1,0.5204]
[1756960727910,1.25002557,4408.2,4408.1,0.9117]
[1756960731422,0.55622557,4408.2,4408.1,0.9117]
[1756960731622,0.4987,4408.5,4408.4,0.3913]
[1756960731919,0.55602893,4408.5,4408.4,2.59185638]
[1756960732119,0.55602893,4408.5,4408.4,2.88325638]
[1756960733021,0.76092893,4408.5,4408.4,2.88325638]
[1756960734019,1.05472893,4408.5,4408.4,0.9117]
[1756960734319,1.24982893,4408.5,4408.4,2.65425638]
[1756960734622,1.24982893,4408.5,4408.4,2.88325638]
[1756960735418,1.24982893,4408.5,4408.4,2.64079976]
[1756960736115,0.95602893,4408.5,4408.4,2.64079976]
[1756960736922,0.76092893,4408.5,4408.4,2.64079976]
[1756960738723,1.05472893,4408.5,4408.4,2.64079976]
[1756960739220,0.76092893,4408.5,4408.4,2.64079976]
[1756960739420,0.55602893,4408.5,4408.4,2.64079976]
[1756960740222,0.76092893,4408.5,4408.4,2.64079976]
[1756960742617,0.55602893,4408.5,4408.4,2.64079976]
[1756960743425,0.76092893,4408.5,4408.4,2.64079976]
[1756960745722,0.2049,4408.6,4408.5,0.1161]
[1756960745924,0.76078335,4408.6,4408.5,0.7364]
[1756960746321,0.55588335,4408.6,4408.5,1.0278]
[1756960746518,1.24968335,4408.6,4408.5,1.0278]
[1756960747835,1.24968335,4408.6,4408.5,0.9117]
[1756960749429,1.24968335,4408.6,4408.5,0.7118]
[1756960749632,1.24968335,4408.6,4408.5,0.229]
[1756960750031,1.24968335,4408.6,4408.5,0.7118]
[1756960750330,1.24968335,4408.6,4408.5,0.9117]
[1756960750528,0.76078335,4408.6,4408.5,1.0278]
[1756960750924,0.2049,4408.6,4408.5,1.0278]
[1756960751532,0.4987,4408.6,4408.5,1.0278]
[1756960752233,0.2049,4408.6,4408.5,1.0278]
[1756960753136,0.7217,4408.6,4408.5,1.0278]
[1756960753333,0.1163,4408.5,4408.0,0.1161]
[1756960753634,0.3148,4408.5,4408.1,0.6424]
[1756960753836,0.7265,4408.5,4408.4,0.7069]
[1756960754037,0.7265,4408.5,4408.4,0.9359]
[1756960754736,0.7265,4408.5,4408.4,2.66499976]